fUST/lending_fUST_20250814
["ID","MTS","AMOUNT","RATE_DAILY","PERIOD"]
[379195012,1755183033690,-502.98,0.00016438,2]
[379195013,1755183033699,-1095.24,0.00016438,2]
[379195015,1755183033712,-460.0,0.00016438,2]
[379195017,1755183033722,-236.20381899,0.00016438,2]
[379195020,1755183033733,-568.86,0.00016438,2]
[379195022,1755183033744,-460.0,0.00016438,2]
[379195024,1755183033754,-707.08,0.00016438,2]
[379195026,1755183033765,-460.0,0.00016438,2]
[379195028,1755183033776,-464.63,0.00016438,2]
[379195030,1755183033787,-460.0,0.00016438,2]
[379195032,1755183033797,-460.0,0.00016438,2]
[379195034,1755183033808,-1015.15,0.00016438,2]
[379195036,1755183033819,-460.0,0.00016438,2]
[379195037,1755183033829,-460.0,0.00016438,2]
[379195040,1755183033839,-460.0,0.00016438,2]
[379195042,1755183033849,-460.0,0.00016438,2]
[379195044,1755183033859,-658.01,0.00016438,2]
[379195045,1755183033873,-460.0,0.00016438,2]
[379195047,1755183033884,-460.0,0.00016438,2]
[379195049,1755183033894,-596.88,0.00016438,2]
[379195051,1755183033905,-460.0,0.00016438,2]
[379195054,1755183033915,-2692.05,0.00016438,2]
[379195056,1755183033925,-498.99,0.00016438,2]
[379195057,1755183033935,-460.0,0.00016438,2]
[379195060,1755183033946,-460.0,0.00016438,2]
[379195062,1755183033956,-460.0,0.00016438,2]
[379195064,1755183033965,-460.0,0.00016438,2]
[379195066,1755183033975,-1357.82,0.00016438,2]
[379195067,1755183033985,-1032.86,0.00016438,2]
[379195068,1755183033995,-460.0,0.00016438,2]
[379195069,1755183034005,-577.30425618,0.00016438,2]
[379195070,1755183034015,-4786.47,0.00016438,2]
[379195071,1755183034024,-555.68,0.00016438,2]
[379195072,1755183034035,-486.29,0.00016438,2]
[379195073,1755183034044,-460.0,0.00016438,2]
[379195074,1755183034054,-518.0,0.00016438,2]
[379195075,1755183034063,-597.0,0.00016438,2]
[379195076,1755183034073,-460.0,0.00016438,2]
[379195077,1755183034082,-460.0,0.00016438,2]
[379195078,1755183034091,-460.0,0.00016438,2]
[379195079,1755183034100,-460.0,0.00016438,2]
[379195080,1755183034110,-1711.34,0.00016438,2]
[379195081,1755183034123,-460.0,0.00016438,2]
[379195082,1755183034133,-460.0,0.00016438,2]
[379195083,1755183034143,-460.0,0.00016438,2]
[379195084,1755183034154,-460.0,0.00016438,2]
[379195085,1755183034164,-660.29559147,0.00016438,2]
[379195086,1755183034179,-116.88440853,0.00016438,2]
[379195087,1755183034189,-460.0,0.00016438,2]
[379195088,1755183034200,-460.0,0.00016438,2]
[379195089,1755183034210,-460.0,0.00016438,2]
[379195090,1755183034221,-200.0,0.00016633,2]
[379195091,1755183034232,-200.0,0.00016633,2]
[379195092,1755183034243,-200.0,0.00016633,2]
[379195093,1755183034254,-200.0,0.00016633,2]
[379195094,1755183034266,-200.0,0.00016633,2]
[379195095,1755183034277,-200.0,0.00016633,2]
[379195096,1755183034287,-460.0,0.00016712,2]
[379195097,1755183034298,-460.0,0.00016712,2]
[379195098,1755183034308,-460.0,0.00016712,2]
[379195099,1755183034318,-460.0,0.00016712,2]
[379195100,1755183034328,-460.0,0.00016712,2]
[379195101,1755183034341,-460.0,0.00016712,2]
[379195102,1755183034351,-460.0,0.00016712,2]
[379195103,1755183034361,-460.0,0.00016712,2]
[379195104,1755183034372,-460.0,0.00016712,2]
[379195105,1755183034383,-460.0,0.00016712,2]
[379195106,1755183034392,-460.0,0.00016712,2]
[379195107,1755183034402,-460.0,0.00016712,2]
[379195108,1755183034413,-460.0,0.00016712,2]
[379195109,1755183034423,-460.0,0.00016712,2]
[379195110,1755183034432,-460.0,0.00016712,2]
[379195111,1755183034442,-460.0,0.00016712,2]
[379195112,1755183034452,-460.0,0.00016712,2]
[379195113,1755183034463,-547.49,0.00016712,2]
[379195114,1755183034474,-460.0,0.00016712,2]
[379195115,1755183034483,-460.0,0.00016712,2]
[379195116,1755183034495,-460.0,0.00016712,2]
[379195117,1755183034506,-460.0,0.00016712,2]
[379195118,1755183034515,-460.0,0.00016712,2]
[379195119,1755183034525,-460.0,0.00016712,2]
[379195120,1755183034534,-460.0,0.00016712,2]
[379195121,1755183034544,-460.0,0.00016712,2]
[379195122,1755183034554,-460.0,0.00016712,2]
[379195123,1755183034564,-460.0,0.00016712,2]
[379195124,1755183034574,-460.0,0.00016712,2]
[379195125,1755183034584,-460.0,0.00016712,2]
[379195126,1755183034594,-460.0,0.00016712,2]
[379195127,1755183034604,-460.0,0.00016712,2]
[379195128,1755183034614,-460.0,0.00016712,2]
[379195129,1755183034625,-439.42532874,0.00016712,2]
[379195130,1755183034634,-460.0,0.00016712,2]
[379195131,1755183034644,-460.0,0.00016712,2]
[379195132,1755183034653,-460.0,0.00016712,2]
[379195133,1755183034663,-460.0,0.00016712,2]
[379195134,1755183034673,-460.0,0.00016712,2]
[379195135,1755183034683,-1138.91,0.00016712,2]
[379195136,1755183034693,-460.0,0.00016712,2]
[379195137,1755183034703,-460.0,0.00016712,2]
[379195138,1755183034713,-828.19,0.00016712,2]
[379195139,1755183034723,-460.0,0.00016712,2]
[379195140,1755183034733,-328.68478555,0.00016712,2]
[379195141,1755183034743,-733.04,0.00016712,2]
[379195142,1755183034753,-460.0,0.00016712,2]
[379195143,1755183034763,-508.27,0.00016712,2]
[379195144,1755183034772,-460.0,0.00016712,2]
[379195145,1755183034782,-460.0,0.00016712,2]
[379195146,1755183034792,-460.0,0.00016712,2]
[379195147,1755183034802,-1442.01,0.00016712,2]
[379195148,1755183034812,-460.0,0.00016712,2]
[379195149,1755183034822,-354.84186702,0.00016712,2]
[379195150,1755183034835,-105.15813298,0.00016712,2]
[379195151,1755183034845,-460.0,0.00016712,2]
[379195152,1755183034855,-320.03398755,0.00016712,2]
[379195153,1755183034868,-139.96601245,0.00016712,2]
[379195154,1755183034878,-113.32401755,0.00016712,2]
[379195155,1755183034889,-354.81598245,0.00016712,2]
[379195156,1755183034899,-479.66107845,0.00016712,2]
[379195261,1755183038311,-460.0,0.00016438,2]
[379195262,1755183038321,-460.0,0.00016438,2]
[379195263,1755183038331,-2493.03892155,0.00016712,2]
[379195264,1755183038346,-460.0,0.00016712,2]
[379195265,1755183038356,-1379.02004616,0.00016712,2]
[379195268,1755183038408,-460.0,0.00016438,2]
[379195269,1755183038418,-148.64995384,0.00016712,2]
[379195270,1755183038427,-161.72754875,0.00016712,2]
[379195271,1755183038511,-298.27245125,0.00016712,2]
[379195273,1755183038521,-565.91,0.00016712,2]
[379195275,1755183038532,-865.84,0.00016712,2]
[379195277,1755183038542,-460.0,0.00016712,2]
[379195278,1755183038552,-460.0,0.00016712,2]
[379195279,1755183038563,-460.0,0.00016712,2]
[379195280,1755183038573,-502.98,0.00016712,2]
[379195281,1755183038584,-1095.24,0.00016712,2]
[379195282,1755183038594,-348.61595269,0.00016712,2]
[379195283,1755183038607,-111.38404731,0.00016712,2]
[379195284,1755183038620,-568.86,0.00016712,2]
[379195285,1755183038630,-460.0,0.00016712,2]
[379195286,1755183038640,-707.08,0.00016712,2]
[379195287,1755183038650,-460.0,0.00016712,2]
[379195288,1755183038660,-456.93248997,0.00016712,2]
[379195289,1755183038672,-7.69751003,0.00016712,2]
[379195290,1755183038682,-460.0,0.00016712,2]
[379195291,1755183038692,-460.0,0.00016712,2]
[379195292,1755183038702,-1015.15,0.00016712,2]
[379195293,1755183038712,-460.0,0.00016712,2]
[379195294,1755183038722,-414.67122231,0.00016712,2]
[379195295,1755183038732,-460.0,0.00016712,2]
[379195296,1755183038742,-658.01,0.00016712,2]
[379195297,1755183038752,-460.0,0.00016712,2]
[379195298,1755183038762,-460.0,0.00016712,2]
[379195299,1755183038772,-211.2839053,0.00016712,2]
[379195564,1755183043437,-460.0,0.00016438,2]
[379195567,1755183043447,-460.0,0.00016438,2]
[379195570,1755183043457,-440.95259135,0.00016438,2]
[379195883,1755183046558,-603.04740865,0.00016438,2]
[379195884,1755183046567,-460.0,0.00016438,2]
[379195885,1755183046577,-460.0,0.00016438,2]
[379195886,1755183046586,-787.64,0.00016438,2]
[379195887,1755183046597,-385.5960947,0.00016712,2]
[379195888,1755183046606,-2692.05,0.00016712,2]
[379195889,1755183046617,-498.99,0.00016712,2]
[379195890,1755183046628,-460.0,0.00016712,2]
[379195891,1755183046638,-460.0,0.00016712,2]
[379195892,1755183046648,-460.0,0.00016712,2]
[379195893,1755183046658,-460.0,0.00016712,2]
[379195894,1755183046667,-1357.82,0.00016712,2]
[379195895,1755183046676,-1032.86,0.00016712,2]
[379195896,1755183046686,-460.0,0.00016712,2]
[379195897,1755183046696,-3274.11192808,0.00016712,2]
[379195898,1755183046708,-254.88887083,0.00016712,2]
[379195899,1755183046720,-1257.46920109,0.00016712,2]
[379195900,1755183046730,-555.68,0.00016712,2]
[379195901,1755183046740,-486.29,0.00016712,2]
[379195902,1755183046751,-460.0,0.00016712,2]
[379195903,1755183046761,-518.0,0.00016712,2]
[379195904,1755183046771,-597.0,0.00016712,2]
[379195905,1755183046783,-460.0,0.00016712,2]
[379195906,1755183046793,-460.0,0.00016712,2]
[379195907,1755183046803,-460.0,0.00016712,2]
[379195908,1755183046813,-460.0,0.00016712,2]
[379195909,1755183046823,-1711.34,0.00016712,2]
[379195910,1755183046832,-460.0,0.00016712,2]
[379195911,1755183046842,-460.0,0.00016712,2]
[379195912,1755183046852,-460.0,0.00016712,2]
[379195913,1755183046861,-460.0,0.00016712,2]
[379195914,1755183046873,-777.18,0.00016712,2]
[379195915,1755183046883,-460.0,0.00016712,2]
[379195916,1755183046893,-460.0,0.00016712,2]
[379195917,1755183046903,-460.0,0.00016712,2]
[379195918,1755183046912,-460.0,0.00016712,2]
[379195919,1755183046922,-460.0,0.00016712,2]
[379195920,1755183046932,-460.0,0.00016712,2]
[379195921,1755183046942,-460.0,0.00016712,2]
[379195922,1755183046951,-460.0,0.00016712,2]
[379195923,1755183046960,-1044.0,0.00016712,2]
[379195924,1755183046970,-460.0,0.00016712,2]
[379195925,1755183046980,-460.0,0.00016712,2]
[379195926,1755183046991,-787.64,0.00016712,2]
[379195927,1755183047001,-209.03482721,0.00016741,2]
[379195928,1755183047010,-320.86112733,0.00016921,2]
[379195929,1755183047020,-483.44995291,0.00016921,2]
[379195930,1755183047029,-1000.0,0.00016921,2]
[379195931,1755183047038,-312.61465584,0.00016921,2]
[379195932,1755183047050,-187.38534416,0.00016921,2]
[379195933,1755183047060,-232.05637125,0.00016955,2]
[379195934,1755183047071,-160.0,0.00016955,2]
[379195935,1755183047081,-160.0,0.00016955,2]
[379195936,1755183047091,-417.15472785,0.00016955,2]
[379195937,1755183047100,-461.9529908,0.00016955,2]
[379195938,1755183047110,-215.59581046,0.00016955,2]
[379195939,1755183047119,-843.37884167,0.00016955,2]
[379195940,1755183047132,-528.19044044,0.00016955,2]
[379195941,1755183047141,-183.69152717,0.00016986,2]
[379195942,1755183047153,-558.25966148,0.00016986,2]
[379196157,1755183050727,1517.7,0.00019649,30]
[379196158,1755183051279,3035.41,0.00020585,30]
[379196159,1755183051623,4553.11,0.0002152,30]
[379196182,1755183052051,6070.81,0.00022456,30]
[379196464,1755183165103,154.631802,0.00023,30]
[379196465,1755183165449,154.631802,0.00023,30]
[379196466,1755183166009,154.631802,0.00023,30]
[379196467,1755183166327,154.631802,0.00023,30]
[379196471,1755183212636,181.98074884,0.000222,69]
[379196474,1755183290597,329.366311,0.00013699,2]
[379196475,1755183290621,464.485693,0.00013699,2]
[379196477,1755183351880,1434.92,0.00019715,30]
[379196478,1755183352329,2869.84,0.00020654,30]
[379196479,1755183352796,4304.76,0.00021593,30]
[379196480,1755183353252,5739.68,0.00022532,30]
[379196482,1755183531795,1356.65,0.00020251,30]
[379196483,1755183532725,2713.3,0.00021216,30]
[379196484,1755183533210,4069.95,0.0002218,30]
[379196485,1755183614774,1312.25,0.00020353,30]
[379196486,1755183615771,2624.5,0.00021322,30]
[379196487,1755183616522,3936.75,0.00022291,30]
[379196518,1755183696118,1269.31,0.00020292,30]
[379196519,1755183696602,2538.61,0.00021259,30]
[379196520,1755183697017,3807.92,0.00022225,30]
[379196538,1755183780678,1227.76,0.00020155,30]
[379196539,1755183781145,2455.53,0.00021115,30]
[379196540,1755183781585,3683.29,0.00022075,30]
[379196543,1755183863840,1187.58,0.00019668,30]
[379196544,1755183864263,2375.17,0.00020604,30]
[379196545,1755183864696,3562.75,0.00021541,30]
[379196546,1755183865129,4750.33,0.00022477,30]
[379196548,1755183947081,1122.81,0.00020644,30]
[379196549,1755183947321,2245.61,0.00022521,30]
[379196551,1755184112021,1104.43,0.00020746,30]
[379196552,1755184112767,2208.86,0.00022632,30]
[379196559,1755184194627,1086.36,0.00020902,30]
[379196560,1755184195591,2172.72,0.00022802,30]
[379196598,1755184219201,-200.0,0.00026412,120]
[379196599,1755184219231,-200.0,0.00026523,120]
[379196600,1755184219260,-200.0,0.00026721,120]
[379196601,1755184219289,-200.0,0.00026771,120]
[379196602,1755184219319,-252.07565,0.00027,120]
[379196603,1755184219348,-199.8089556,0.00027397,120]
[379196604,1755184219381,-200.0,0.00028143,120]
[379196605,1755184219411,-200.0,0.00028293,120]
[379196606,1755184219445,-200.0,0.00028444,120]
[379196607,1755184219473,-200.0,0.00028444,120]
[379196608,1755184219503,-200.0,0.0002875,120]
[379196609,1755184219531,-200.0,0.0002875,120]
[379196610,1755184219558,-347.44470172,0.0002875,120]
[379196611,1755184219586,-159.0,0.00029,120]
[379196612,1755184219613,-1444.0,0.00029041,120]
[379196613,1755184219639,-200.0,0.00029042,120]
[379196614,1755184219672,-200.0,0.00029042,120]
[379196615,1755184219700,-200.0,0.00029042,120]
[379196616,1755184219733,-200.0,0.00029325,120]
[379196617,1755184219762,-200.0,0.00029329,120]
[379196618,1755184219795,-216.29450313,0.0003,120]
[379196620,1755184230822,-773.67,0.00028443,60]
[379196621,1755184230852,-1865.74261069,0.00028443,90]
[379196639,1755184232715,-300.0,0.00016437,2]
[379196640,1755184232725,-1200.0,0.00016437,2]
[379196641,1755184232735,-440.50811188,0.00016438,2]
[379196642,1755184232747,-89.55802622,0.00016438,2]
[379196845,1755184238497,-370.44197378,0.00016438,2]
[379196846,1755184238507,-460.0,0.00016438,2]
[379196847,1755184238516,-460.0,0.00016438,2]
[379196848,1755184238525,-460.0,0.00016438,2]
[379196849,1755184238534,-460.0,0.00016438,2]
[379196850,1755184238543,-460.0,0.00016438,2]
[379196851,1755184238553,-460.0,0.00016438,2]
[379196852,1755184238562,-436.25802622,0.00016438,2]
[379196853,1755184238574,-23.74197378,0.00016438,2]
[379196854,1755184238584,-460.0,0.00016438,2]
[379196855,1755184238593,-501.86,0.00016438,2]
[379196856,1755184238602,-407.7618769,0.00016438,2]
[379196858,1755184238611,-460.0,0.00016438,2]
[379196860,1755184238620,-460.0,0.00016438,2]
[379196862,1755184238629,-460.0,0.00016438,2]
[379196864,1755184238639,-460.0,0.00016438,2]
[379196866,1755184238648,-460.0,0.00016438,2]
[379196868,1755184238660,-460.0,0.00016438,2]
[379196869,1755184238669,-460.0,0.00016438,2]
[379196870,1755184238683,-460.0,0.00016438,2]
[379196871,1755184238693,-460.0,0.00016438,2]
[379196873,1755184238702,-460.0,0.00016438,2]
[379196875,1755184238712,-458.47995032,0.00016438,2]
[379196876,1755184238721,-460.0,0.00016438,2]
[379196877,1755184238731,-460.0,0.00016438,2]
[379196878,1755184238740,-460.0,0.00016438,2]
[379196879,1755184238750,-460.0,0.00016438,2]
[379196880,1755184238760,-671.95,0.00016438,2]
[379196882,1755184238769,-456.45231219,0.00016438,2]
[379196883,1755184238781,-3.54768781,0.00016438,2]
[379196884,1755184238791,-460.0,0.00016438,2]
[379196885,1755184238800,-465.91,0.00016438,2]
[379196886,1755184238809,-460.0,0.00016438,2]
[379196887,1755184238819,-460.0,0.00016438,2]
[379196888,1755184238828,-946.79,0.00016438,2]
[379196889,1755184238838,-648.16,0.00016438,2]
[379196890,1755184238848,-460.0,0.00016438,2]
[379196891,1755184238858,-460.0,0.00016438,2]
[379196892,1755184238868,-460.0,0.00016438,2]
[379196893,1755184238877,-460.0,0.00016438,2]
[379196894,1755184238887,-518.75,0.00016438,2]
[379196895,1755184238896,-1400.36,0.00016438,2]
[379196896,1755184238906,-460.0,0.00016438,2]
[379196897,1755184238916,-460.0,0.00016438,2]
[379196898,1755184238925,-460.0,0.00016438,2]
[379196899,1755184238934,-460.0,0.00016438,2]
[379196900,1755184238944,-460.0,0.00016438,2]
[379196901,1755184238953,-254.04034882,0.00016438,2]
[379196902,1755184238963,-1321.84,0.00016438,2]
[379196903,1755184238972,-460.0,0.00016438,2]
[379196904,1755184238981,-460.0,0.00016438,2]
[379196905,1755184238991,-460.0,0.00016438,2]
[379196906,1755184239001,-460.0,0.00016438,2]
[379196907,1755184239010,-460.0,0.00016438,2]
[379196908,1755184239020,-460.0,0.00016438,2]
[379196909,1755184239030,-460.0,0.00016438,2]
[379196910,1755184239039,-460.0,0.00016438,2]
[379196911,1755184239049,-460.0,0.00016438,2]
[379196912,1755184239059,-2467.71,0.00016438,2]
[379196913,1755184239068,-461.07,0.00016438,2]
[379196914,1755184239078,-4387.6,0.00016438,2]
[379196915,1755184239087,-460.0,0.00016438,2]
[379196916,1755184239096,-460.0,0.00016438,2]
[379196917,1755184239106,-460.0,0.00016438,2]
[379196918,1755184239115,-460.0,0.00016438,2]
[379196919,1755184239125,-1244.67,0.00016438,2]
[379196920,1755184239135,-460.0,0.00016438,2]
[379196921,1755184239144,-460.0,0.00016438,2]
[379196922,1755184239156,-460.0,0.00016438,2]
[379196923,1755184239166,-793.68,0.00016438,2]
[379196924,1755184239176,-1003.97,0.00016438,2]
[379196925,1755184239186,-460.0,0.00016438,2]
[379196926,1755184239196,-474.83,0.00016438,2]
[379196927,1755184239206,-521.46,0.00016438,2]
[379196928,1755184239216,-623.35,0.00016438,2]
[379196929,1755184239235,-460.0,0.00016438,2]
[379196930,1755184239247,-279.48461448,0.00016438,2]
[379196931,1755184239260,-460.0,0.00016438,2]
[379196932,1755184239271,-930.56,0.00016438,2]
[379196933,1755184239282,-460.19940076,0.00016438,2]
[379196934,1755184239292,-460.0,0.00016438,2]
[379196935,1755184239302,-460.0,0.00016438,2]
[379196936,1755184239312,-460.0,0.00016438,2]
[379196937,1755184239322,-460.0,0.00016438,2]
[379196938,1755184239332,-460.0,0.00016438,2]
[379196939,1755184239342,-722.01,0.00016438,2]
[379196940,1755184239352,-2724.97,0.00016438,2]
[379196941,1755184239362,-460.0,0.00016438,2]
[379196942,1755184239372,-460.0,0.00016438,2]
[379196943,1755184239381,-460.0,0.00016438,2]
[379196944,1755184239391,-460.0,0.00016438,2]
[379196945,1755184239400,-460.0,0.00016438,2]
[379196946,1755184239414,-460.0,0.00016438,2]
[379196947,1755184239424,-460.0,0.00016438,2]
[379196948,1755184239434,-460.0,0.00016438,2]
[379196949,1755184239445,-460.0,0.00016438,2]
[379196950,1755184239455,-460.0,0.00016438,2]
[379196951,1755184239465,-460.0,0.00016438,2]
[379196952,1755184239475,-547.25,0.00016438,2]
[379196953,1755184239485,-588.92798964,0.00016438,2]
[379196954,1755184239495,-957.0,0.00016438,2]
[379196955,1755184239505,-1043.91,0.00016438,2]
[379196956,1755184239515,-460.0,0.00016438,2]
[379196957,1755184239525,-284.93934815,0.00016561,2]
[379196958,1755184239534,-500.0,0.00016561,2]
[379196959,1755184239543,-151.0,0.00016561,2]
[379196960,1755184239553,-151.0,0.00016561,2]
[379196961,1755184239564,-500.0,0.00016561,2]
[379196962,1755184239575,-151.0,0.00016561,2]
[379196963,1755184239585,-500.0,0.00016561,2]
[379196964,1755184239594,-500.0,0.00016561,2]
[379196965,1755184239604,-151.0,0.00016561,2]
[379196966,1755184239614,-500.0,0.00016561,2]
[379196967,1755184239623,-500.0,0.00016561,2]
[379196968,1755184239633,-151.0,0.00016561,2]
[379196969,1755184239643,-500.0,0.00016561,2]
[379196970,1755184239652,-151.0,0.00016561,2]
[379196971,1755184239665,-500.0,0.00016561,2]
[379196972,1755184239678,-151.0,0.00016561,2]
[379196973,1755184239689,-500.0,0.00016561,2]
[379196974,1755184239699,-151.0,0.00016561,2]
[379196975,1755184239708,-151.0,0.00016561,2]
[379196976,1755184239718,-17842.522448,0.00016561,2]
[379196977,1755184239728,-500.0,0.00016561,2]
[379196978,1755184239738,-151.0,0.00016561,2]
[379196979,1755184239748,-151.0,0.00016561,2]
[379196980,1755184239760,-151.0,0.00016561,2]
[379196981,1755184239770,-645.03481391,0.00016561,2]
[379196982,1755184239780,-275.42496579,0.00016561,2]
[379196983,1755184239790,-151.0,0.00016561,2]
[379196984,1755184239800,-151.0,0.00016561,2]
[379196985,1755184239811,-151.0,0.00016561,2]
[379196986,1755184239821,-151.0,0.00016561,2]
[379196987,1755184239831,-151.0,0.00016561,2]
[379196988,1755184239840,-151.0,0.00016561,2]
[379196989,1755184239850,-151.0,0.00016561,2]
[379196990,1755184239860,-151.0,0.00016561,2]
[379196991,1755184239871,-151.0,0.00016561,2]
[379196992,1755184239880,-151.0,0.00016561,2]
[379196993,1755184239890,-151.0,0.00016561,2]
[379196994,1755184239900,-151.0,0.00016561,2]
[379196995,1755184239913,-151.8420255,0.00016561,2]
[379196996,1755184239923,-2371.53292717,0.00016612,2]
[379196997,1755184239937,-8999.14858597,0.00016612,2]
[379196998,1755184239949,-455.18249544,0.00016612,2]
[379196999,1755184239961,-362.3605241,0.00016612,2]
[379197000,1755184239972,-460.0,0.00016712,2]
[379197001,1755184239982,-460.0,0.00016712,2]
[379197002,1755184239992,-460.0,0.00016712,2]
[379197003,1755184240002,-460.0,0.00016712,2]
[379197004,1755184240012,-460.0,0.00016712,2]
[379197005,1755184240021,-336.08217189,0.00016712,2]
[379197006,1755184240033,-123.91782811,0.00016712,2]
[379197007,1755184240043,-460.0,0.00016712,2]
[379197008,1755184240052,-68.74287333,0.00016712,2]
[379197009,1755184240064,-391.25712667,0.00016712,2]
[379197010,1755184240075,-460.0,0.00016712,2]
[379197011,1755184240085,-501.86,0.00016712,2]
[379197012,1755184240093,-460.0,0.00016712,2]
[379197014,1755184240103,-460.0,0.00016712,2]
[379197015,1755184240113,-460.0,0.00016712,2]
[379197016,1755184240123,-460.0,0.00016712,2]
[379197017,1755184240132,-460.0,0.00016712,2]
[379197019,1755184240142,-460.0,0.00016712,2]
[379197020,1755184240152,-453.51954093,0.00016712,2]
[379197022,1755184240166,-6.48045907,0.00016712,2]
[379197024,1755184240176,-460.0,0.00016712,2]
[379197026,1755184240187,-460.0,0.00016712,2]
[379197028,1755184240197,-460.0,0.00016712,2]
[379197030,1755184240206,-460.0,0.00016712,2]
[379197032,1755184240216,-460.0,0.00016712,2]
[379197034,1755184240225,-460.0,0.00016712,2]
[379197035,1755184240235,-460.0,0.00016712,2]
[379197037,1755184240245,-671.95,0.00016712,2]
[379197040,1755184240255,-460.0,0.00016712,2]
[379197043,1755184240265,-460.0,0.00016712,2]
[379197045,1755184240274,-465.91,0.00016712,2]
[379197047,1755184240284,-460.0,0.00016712,2]
[379197049,1755184240293,-460.0,0.00016712,2]
[379197051,1755184240303,-946.79,0.00016712,2]
[379197053,1755184240313,-648.16,0.00016712,2]
[379197055,1755184240322,-306.90295149,0.00016712,2]
[379197056,1755184240341,-153.09704851,0.00016712,2]
[379197058,1755184240351,-460.0,0.00016712,2]
[379197060,1755184240361,-208.7924847,0.00016712,2]
[379197061,1755184240371,-460.0,0.00016712,2]
[379197062,1755184240380,-518.75,0.00016712,2]
[379197064,1755184240389,-1400.36,0.00016712,2]
[379197065,1755184240399,-157.05480067,0.00016712,2]
[379197067,1755184240413,-302.94519933,0.00016712,2]
[379197069,1755184240422,-196.90863,0.00016712,2]
[379197107,1755184240856,-263.09137,0.00016712,2]
[379197108,1755184240865,-608.7781359,0.00016712,2]
[379197109,1755184240875,-460.0,0.00016712,2]
[379197110,1755184240884,-460.0,0.00016712,2]
[379197111,1755184240894,-1220.25897251,0.00016712,2]
[379197147,1755184246578,-460.0,0.00016438,2]
[379197148,1755184246588,-101.58102749,0.00016712,2]
[379197149,1755184246598,-460.0,0.00016712,2]
[379197150,1755184246607,-460.0,0.00016712,2]
[379197151,1755184246616,-460.0,0.00016712,2]
[379197152,1755184246626,-460.0,0.00016712,2]
[379197154,1755184246635,-460.0,0.00016712,2]
[379197155,1755184246644,-460.0,0.00016712,2]
[379197156,1755184246654,-460.0,0.00016712,2]
[379197157,1755184246670,-460.0,0.00016712,2]
[379197159,1755184246680,-460.0,0.00016712,2]
[379197161,1755184246689,-2467.71,0.00016712,2]
[379197163,1755184246699,-461.07,0.00016712,2]
[379197165,1755184246710,-4387.6,0.00016712,2]
[379197167,1755184246719,-460.0,0.00016712,2]
[379197169,1755184246728,-460.0,0.00016712,2]
[379197171,1755184246737,-460.0,0.00016712,2]
[379197172,1755184246747,-460.0,0.00016712,2]
[379197174,1755184246759,-1244.67,0.00016712,2]
[379197196,1755184246963,-460.0,0.00016712,2]
[379197198,1755184246973,-460.0,0.00016712,2]
[379197200,1755184246983,-460.0,0.00016712,2]
[379197202,1755184246994,-793.68,0.00016712,2]
[379197204,1755184247004,-1003.97,0.00016712,2]
[379197206,1755184247014,-460.0,0.00016712,2]